bitfinex-derivatives/quotes_BTCF0:USTF0_20250426
["timestamp","ask_amount","ask_price","bid_price","bid_amount"]
[1745645914641,0.7148,94630.0,94629.0,0.0628]
[1745645915045,0.7128,94630.0,94629.0,0.0628]
[1745645915241,0.5468,94630.0,94629.0,0.0628]
[1745645915743,0.5468,94630.0,94629.0,0.09471227]
[1745645916251,0.7148,94630.0,94629.0,0.09471227]
[1745645917352,0.7148,94630.0,94629.0,0.03391227]
[1745645924349,0.7148,94630.0,94629.0,0.08676977]
[1745645925844,0.7148,94630.0,94629.0,0.03391227]
[1745645927854,0.7128,94630.0,94629.0,0.03391227]
[1745645928158,0.7148,94630.0,94629.0,0.03391227]
[1745645929161,0.7148,94630.0,94621.0,0.06508]
[1745645929351,0.3608,94622.0,94621.0,0.06508]
[1745645929550,0.3608,94622.0,94621.0,0.11795048]
[1745645930158,0.5288,94622.0,94621.0,0.11795048]
[1745645930658,0.5288,94622.0,94621.0,0.11995048]
[1745645931758,0.5288,94622.0,94621.0,0.15104021]
[1745645932259,0.5308,94622.0,94621.0,0.15104021]
[1745645932461,0.5308,94622.0,94621.0,0.21354021]
[1745645933755,0.5308,94622.0,94621.0,0.15104021]
[1745645934860,0.40489725,94622.0,94621.0,0.15104021]
[1745645935048,0.40489725,94622.0,94621.0,0.27384021]
[1745645935252,0.32915726,94622.0,94621.0,0.37952421]
[1745645935446,0.24635726,94622.0,94621.0,0.41812421]
[1745645936052,0.0596,94626.0,94621.0,0.41812421]
[1745645936359,0.0596,94626.0,94622.0,0.05287048]
[1745645936561,0.0596,94626.0,94623.0,0.05287048]
[1745645936760,0.0596,94626.0,94624.0,0.1224]
[1745645937063,0.0596,94626.0,94625.0,0.05287048]
[1745645937255,0.0616,94626.0,94625.0,0.05287048]
[1745645937449,0.0616,94626.0,94625.0,0.17527048]
[1745645938752,0.0596,94626.0,94625.0,0.17627048]
[1745645938956,0.0616,94626.0,94625.0,0.17627048]
[1745645940463,0.0616,94626.0,94625.0,0.11487048]
[1745645945849,0.0616,94626.0,94625.0,0.05387048]
[1745645946252,0.2296,94626.0,94625.0,0.05387048]
[1745645950762,0.2296,94626.0,94625.0,0.11891048]
[1745645951859,0.2296,94626.0,94625.0,0.18141048]
[1745645953057,0.0616,94626.0,94625.0,0.18141048]
[1745645953258,0.02271285,94629.0,94625.0,0.18141048]
[1745645953571,0.02271285,94629.0,94626.0,0.11477048]
[1745645953763,0.02271285,94629.0,94627.0,0.05287048]
[1745645953964,0.02271285,94629.0,94628.0,0.05287048]
[1745645954156,0.19071285,94629.0,94628.0,0.11477048]
[1745645955157,0.19071285,94629.0,94628.0,0.17981048]
[1745645955361,0.19271285,94629.0,94628.0,0.17981048]
[1745645956257,0.19271285,94629.0,94628.0,0.18281048]
[1745645956463,0.25621285,94629.0,94628.0,0.18281048]
[1745645974682,0.25621285,94629.0,94628.0,0.12091048]
[1745645975371,0.25621285,94629.0,94628.0,0.003]
[1745645975577,1.19308475,94629.0,94624.0,0.065]
[1745645975775,0.0528185,94624.0,94614.0,0.065]
[1745645975974,0.3608,94615.0,94614.0,0.065]
[1745645976182,0.5288,94615.0,94614.0,0.09189832]
[1745645976382,0.7400941,94615.0,94614.0,0.09189832]
[1745645977081,0.5288,94615.0,94614.0,0.02689832]
[1745645977281,0.5288,94615.0,94614.0,0.004]
[1745645977673,0.5288,94615.0,94610.0,0.16222891]
[1745645977881,0.5288,94615.0,94614.0,0.001]
[1745645978078,0.8896,94615.0,94610.0,0.01822891]
[1745645978279,0.8916,94615.0,94614.0,0.001]
[1745645978473,0.8916,94615.0,94614.0,0.002]
[1745645978877,0.8916,94615.0,94614.0,0.02943777]
[1745645979077,0.8916,94615.0,94614.0,0.02843777]
[1745645979781,0.8896,94615.0,94614.0,0.02843777]
[1745645980087,0.8896,94615.0,94594.0,0.01822891]
[1745645980088,1.77575201,94615.0,94594.0,0.01822891]
[1745645980383,0.5721388,94595.0,94594.0,0.02618833]
[1745645980682,0.3608,94595.0,94594.0,0.02618833]
[1745645980885,0.466516,94595.0,94594.0,0.02618833]
[1745645981284,0.634516,94595.0,94594.0,0.05322291]
[1745645981476,0.634516,94595.0,94594.0,0.01822891]
[1745645981681,0.634516,94595.0,94580.0,0.13164491]
[1745645981979,0.7401388,94595.0,94594.0,0.001]
[1745645982179,0.2113464,94592.0,94580.0,0.06664491]
[1745645982375,0.3608,94581.0,94580.0,0.06664491]
[1745645982575,0.3608,94581.0,94580.0,0.0010573]
[1745645983179,0.5288,94581.0,94580.0,0.0010573]
[1745645983381,0.5308,94581.0,94580.0,0.0020573]
[1745645983581,0.5308,94581.0,94580.0,0.02973884]
[1745645983787,0.5308,94581.0,94580.0,0.0020573]
[1745645983980,0.5308,94581.0,94580.0,0.01009361]
[1745645984181,0.3628,94581.0,94580.0,0.0020573]
[1745645984690,0.3638,94581.0,94580.0,0.0070573]
[1745645986989,0.3638,94581.0,94580.0,0.03464524]
[1745645987185,0.5318,94581.0,94580.0,0.0070573]
[1745645988693,0.5318,94581.0,94580.0,0.03446755]
[1745645992683,0.8926,94581.0,94580.0,0.03446755]
[1745645995583,0.8926,94581.0,94580.0,0.03346755]
[1745645997285,0.8926,94581.0,94580.0,0.02846755]
[1745645997486,0.8926,94581.0,94580.0,0.03246755]
[1745646001091,0.7246,94581.0,94580.0,0.03246755]
[1745646012401,0.003,94581.0,94580.0,0.03246755]
[1745646012906,0.7246,94581.0,94580.0,0.03246755]
[1745646013293,0.6599175,94581.0,94580.0,0.03246755]
[1745646014800,0.0679,94592.0,94580.0,0.03246755]
[1745646015000,0.7216,94583.0,94581.0,0.0626]
[1745646015694,0.3608,94582.0,94581.0,0.0626]
[1745646016595,0.3608,94582.0,94581.0,0.0646]
[1745646017400,0.3628,94582.0,94581.0,0.0656]
[1745646017796,0.3638,94582.0,94581.0,0.0706]
[1745646018106,0.5318,94582.0,94581.0,0.0706]
[1745646018408,0.5318,94582.0,94581.0,0.1388]
[1745646018708,0.5308,94582.0,94581.0,0.1338]
[1745646018910,0.5318,94582.0,94581.0,0.1378]
[1745646019109,0.3638,94582.0,94581.0,0.1378]
[1745646019310,0.3618,94582.0,94581.0,0.18766696]
[1745646019512,0.3638,94582.0,94581.0,0.18966696]
[1745646020504,0.33746,94582.0,94581.0,0.18966696]
[1745646020705,0.3638,94582.0,94581.0,0.18966696]
[1745646020905,0.4142,94594.0,94581.0,0.29539496]
[1745646021209,0.3608,94598.0,94584.0,0.13142254]
[1745646021410,0.3608,94598.0,94585.0,0.24780696]
[1745646021708,0.3608,94598.0,94586.0,0.05286696]
[1745646021911,0.3608,94598.0,94587.0,0.05286696]
[1745646022110,0.5288,94598.0,94588.0,0.1299]
[1745646023312,0.5298,94598.0,94588.0,0.1299]
[1745646023513,0.002,94594.0,94588.0,0.1299]
[1745646023907,0.002,94594.0,94588.0,0.1319]
[1745646024117,0.17,94594.0,94588.0,0.1319]
[1745646024305,0.168,94594.0,94588.0,0.1369]
[1745646024799,0.168,94594.0,94589.0,0.0528394]
[1745646025000,0.169,94594.0,94588.0,0.1379]
[1745646025515,0.169,94594.0,94589.0,0.05283608]
[1745646025708,0.169,94594.0,94588.0,0.1379]
[1745646026210,0.171,94594.0,94589.0,0.0528361]
[1745646026401,0.171,94594.0,94588.0,0.1359]
[1745646026714,0.171,94594.0,94589.0,0.05483341]
[1745646026907,0.171,94594.0,94589.0,0.002]
[1745646027101,0.17,94594.0,94590.0,0.0669]
[1745646027306,0.171,94594.0,94590.0,0.0669]
[1745646027810,0.169,94594.0,94590.0,0.0669]
[1745646028013,0.171,94594.0,94590.0,0.0669]
[1745646028211,0.17,94594.0,94590.0,0.0669]
[1745646028509,0.17,94594.0,94590.0,0.0689]
[1745646029501,0.17,94594.0,94590.0,0.0719]
[1745646032807,0.0687,94593.0,94590.0,0.0719]
[1745646033208,0.0688,94592.0,94590.0,0.0719]
[1745646033609,0.0705,94591.0,94590.0,0.0719]
[1745646034104,0.2385,94591.0,94590.0,0.005]
[1745646035007,0.3057,94591.0,94590.0,0.005]
[1745646035405,0.3057,94591.0,94590.0,0.002]
[1745646035612,0.3077,94591.0,94590.0,0.005]
[1745646036310,0.3077,94591.0,94590.0,0.003]
[1745646036516,0.3077,94591.0,94590.0,0.005]
[1745646039222,0.3057,94591.0,94590.0,0.002]
[1745646039513,0.3077,94591.0,94590.0,0.004]
[1745646039910,0.3077,94591.0,94590.0,0.001]
[1745646040112,0.3077,94591.0,94590.0,0.004]
[1745646040317,0.6247677,94591.0,94590.0,0.004]
[1745646040515,0.6247677,94591.0,94590.0,0.003]
[1745646040711,1.4033577,94591.0,94590.0,0.003]
[1745646041018,0.6247677,94591.0,94590.0,0.003]
[1745646041607,0.2113628,94585.0,94580.0,0.02846755]
[1745646041807,0.3608,94581.0,94580.0,0.02846755]
[1745646042210,0.5288,94581.0,94580.0,0.02846755]
[1745646043119,0.5308,94581.0,94580.0,0.03146755]
[1745646043316,0.5308,94581.0,94580.0,0.03346755]
[1745646044519,0.5308,94581.0,94571.0,0.066]
[1745646044819,0.1295,94580.0,94571.0,0.05571127]
[1745646045319,0.2975,94580.0,94571.0,0.03971127]
[1745646045720,0.2975,94580.0,94577.0,0.003]
[1745646046119,0.2985,94580.0,94577.0,0.003]
[1745646046519,0.3005,94580.0,94577.0,0.0573523]
[1745646046734,0.3005,94580.0,94571.0,0.04571127]
[1745646047018,0.2995,94580.0,94571.0,0.04271127]
[1745646047217,0.3005,94580.0,94577.0,0.002]
[1745646048614,0.3005,94580.0,94577.0,0.05114617]
[1745646049017,0.3005,94580.0,94577.0,0.04914617]
[1745646049214,0.3005,94580.0,94571.0,0.04271127]
[1745646049612,0.3005,94580.0,94577.0,0.002]
[1745646050318,0.3005,94580.0,94577.0,0.00998535]
[1745646050619,0.3005,94580.0,94577.0,0.002]
[1745646051021,0.3005,94580.0,94577.0,0.0517807]
[1745646052522,0.3005,94580.0,94577.0,0.0527807]
[1745646055126,0.3005,94580.0,94577.0,0.06072878]
[1745646057330,0.236,94580.0,94577.0,0.06072878]
[1745646057518,0.236,94580.0,94578.0,0.2086]
[1745646058221,0.068,94580.0,94578.0,0.2086]
[1745646058624,0.067,94580.0,94578.0,0.2096]
[1745646058824,0.068,94580.0,94578.0,0.2116]
[1745646060324,0.0706,94579.0,94578.0,0.2116]
[1745646061738,0.0726,94579.0,94578.0,0.2096]
[1745646061928,0.0736,94579.0,94578.0,0.2116]
[1745646063525,0.0736,94579.0,94578.0,0.003]
[1745646063726,0.0736,94579.0,94578.0,0.0722]
[1745646063925,0.0736,94579.0,94578.0,0.1375]
[1745646065623,0.0736,94579.0,94578.0,0.2037]
[1745646066128,0.003,94579.0,94578.0,0.2037]
[1745646071333,0.003,94579.0,94578.0,0.2565179]
[1745646075336,0.0647,94583.0,94578.0,0.2565179]
[1745646075632,0.0647,94583.0,94579.0,0.0528179]
[1745646075836,0.0647,94583.0,94580.0,0.0528179]
[1745646076028,0.0647,94583.0,94581.0,0.1383]
[1745646076228,0.2327,94583.0,94581.0,0.1383]
[1745646076423,0.2347,94583.0,94581.0,0.1383]
[1745646077227,0.2347,94583.0,94581.0,0.1393]
[1745646077432,0.2357,94583.0,94582.0,0.05283829]
[1745646078029,0.2347,94583.0,94582.0,0.05283829]
[1745646078237,0.2347,94583.0,94582.0,0.18853829]
[1745646079235,0.002,94583.0,94582.0,0.18853829]
[1745646079438,0.066,94586.0,94582.0,0.18853829]
[1745646079734,0.002,94583.0,94582.0,0.1387]
[1745646079935,0.002,94583.0,94582.0,0.19153431]
[1745646080338,0.002,94583.0,94582.0,0.19253431]
[1745646080633,0.068,94586.0,94582.0,0.19253431]
[1745646080937,0.068,94586.0,94583.0,0.05283431]
[1745646081235,0.068,94586.0,94584.0,0.05283431]
[1745646081537,0.0715,94585.0,94582.0,0.1397]
[1745646081733,0.0715,94585.0,94583.0,0.05281523]
[1745646081935,0.0663,94584.0,94582.0,0.1397]
[1745646082333,0.0666,94583.0,94582.0,0.1397]
[1745646082534,0.0686,94583.0,94582.0,0.19252416]
[1745646083233,0.0666,94583.0,94582.0,0.18952416]
[1745646083429,0.0666,94583.0,94582.0,0.19252416]
[1745646083735,0.0666,94583.0,94582.0,0.19152416]
[1745646084335,0.0686,94583.0,94582.0,0.19252416]
[1745646092035,0.002,94583.0,94582.0,0.19252416]
[1745646096746,0.002,94583.0,94582.0,0.25752416]
[1745646100041,0.1336,94583.0,94582.0,0.25752416]
[1745646101437,0.1336,94583.0,94582.0,0.12182416]
[1745646101643,0.0675,94583.0,94582.0,0.12182416]
[1745646102138,0.2355,94583.0,94582.0,0.12182416]
[1745646102643,0.16300965,94583.0,94582.0,0.12182416]
[1745646102848,0.06584183,94583.0,94582.0,0.12182416]
[1745646103143,0.00056,94590.0,94582.0,0.069]
[1745646103338,0.00056,94590.0,94583.0,0.1374]
[1745646104145,0.00056,94590.0,94584.0,0.05286046]
[1745646104343,0.00056,94590.0,94583.0,0.1374]
[1745646104649,0.00156,94590.0,94584.0,0.05286307]
[1745646104841,0.00156,94590.0,94583.0,0.1374]
[1745646105243,0.00356,94590.0,94584.0,0.05286314]
[1745646105540,0.00356,94590.0,94585.0,0.05286314]
[1745646105742,0.00356,94590.0,94586.0,0.19246314]
[1745646105949,0.0686,94589.0,94587.0,0.05286314]
[1745646106144,0.2366,94589.0,94588.0,0.1396]
[1745646106348,0.2366,94589.0,94588.0,0.19246314]
[1745646108649,0.2376,94589.0,94588.0,0.19646314]
[1745646108838,0.2396,94589.0,94588.0,0.19646314]
[1745646110947,0.19835801,94589.0,94588.0,0.19646314]
[1745646111152,0.3608,94620.0,94588.0,0.19646314]
[1745646111353,0.0685,94606.0,94597.0,0.13142254]
[1745646111545,0.0685,94606.0,94598.0,0.0698]
[1745646112042,0.2365,94606.0,94598.0,0.0698]
[1745646112845,0.2405,94606.0,94598.0,0.0708]
[1745646113147,0.2415,94606.0,94598.0,0.0748]
[1745646114158,0.074,94605.0,94598.0,0.0748]
[1745646114752,0.067,94604.0,94598.0,0.0748]
[1745646115053,0.235,94604.0,94598.0,0.0708]
[1745646115253,0.0736,94603.0,94598.0,0.0768]
[1745646115452,0.0736,94603.0,94598.0,0.0758]
[1745646115749,0.072,94602.0,94598.0,0.0758]
[1745646116156,0.0736,94601.0,94598.0,0.0758]
[1745646116453,0.1477,94601.0,94598.0,0.0758]
[1745646116645,0.072,94600.0,94598.0,0.0758]
[1745646117044,0.0736,94599.0,94598.0,0.0758]
[1745646117551,0.1456,94599.0,94598.0,0.0758]
[1745646118253,0.3146,94599.0,94598.0,0.0758]
[1745646118653,0.3146,94599.0,94598.0,0.0748]
[1745646118957,0.3176,94599.0,94598.0,0.0758]
[1745646145368,0.2456,94599.0,94598.0,0.0758]
[1745646145572,0.172,94599.0,94598.0,0.0758]
[1745646146368,0.172,94599.0,94598.0,0.12866626]
[1745646150476,0.172,94599.0,94598.0,0.27466626]
[1745646163794,0.243,94599.0,94598.0,0.27466626]
[1745646177602,0.172,94599.0,94598.0,0.27466626]
[1745646179503,0.2409,94599.0,94598.0,0.27466626]
[1745646183098,0.3164,94599.0,94598.0,0.27466626]
[1745646201625,0.2409,94599.0,94598.0,0.27466626]
[1745646204926,0.75344201,94629.0,94598.0,0.74117426]
[1745646205128,0.069,94626.0,94618.0,0.3608]
[1745646205327,0.1455,94628.0,94619.0,0.2177]
[1745646205924,0.003,94622.0,94619.0,0.2177]
[1745646206723,0.0739,94621.0,94619.0,0.2177]
[1745646206919,0.168,94627.0,94619.0,0.2197]
[1745646207120,0.0739,94626.0,94619.0,0.2197]
[1745646207328,0.1122,94628.0,94619.0,0.2197]
[1745646207329,0.041,94628.0,94620.0,0.3608]
[1745646207527,0.024,94622.0,94620.0,0.3608]
[1745646207728,0.024,94622.0,94621.0,0.1405]
[1745646207927,0.024,94622.0,94621.0,0.19326932]
[1745646208324,0.00476848,94628.0,94621.0,0.19326932]
[1745646208525,0.00476848,94628.0,94621.0,0.1405]
[1745646208729,0.014,94622.0,94621.0,0.1405]
[1745646208930,0.014,94622.0,94621.0,0.1932473]
[1745646209426,0.002,94628.0,94621.0,0.2002473]
[1745646209621,0.003,94627.0,94621.0,0.1475]
[1745646210226,0.002,94622.0,94621.0,0.1555]
[1745646210724,0.002,94622.0,94621.0,0.1475]
[1745646210934,0.002,94622.0,94621.0,0.1555]
[1745646211330,0.002,94622.0,94621.0,0.1475]
[1745646211533,0.002,94622.0,94621.0,0.1555]
[1745646212236,0.0685,94630.0,94621.0,0.1485]
[1745646212532,0.001,94627.0,94621.0,0.1635]
[1745646212733,0.001,94627.0,94625.0,0.3608]
[1745646212934,0.001,94627.0,94626.0,0.21152]
[1745646213138,0.168,94627.0,94626.0,0.21152]
[1745646213830,0.169,94627.0,94626.0,0.21152]
[1745646214236,0.169,94627.0,94626.0,0.21852]
[1745646215333,0.169,94627.0,94626.0,0.23252]
[1745646215934,0.169,94627.0,94626.0,0.22552]
[1745646216133,0.169,94627.0,94626.0,0.24263206]
[1745646216530,0.169,94627.0,94626.0,0.23463206]
[1745646216832,0.169,94627.0,94626.0,0.24263206]
[1745646218833,0.168,94627.0,94626.0,0.22763206]
[1745646219034,0.169,94627.0,94626.0,0.24263206]
[1745646219226,0.169,94627.0,94626.0,0.60343206]
[1745646225533,0.169,94627.0,94626.0,0.24263206]
[1745646225733,0.169,94627.0,94626.0,0.60343206]
[1745646230734,0.16458018,94627.0,94626.0,0.60343206]
[1745646234943,0.31128018,94627.0,94626.0,0.60343206]
[1745646235737,0.27534393,94627.0,94626.0,0.60343206]
[1745646238443,0.27534393,94627.0,94626.0,0.65617929]
[1745646239850,0.27534393,94627.0,94626.0,0.58127929]
[1745646240047,0.27534393,94627.0,94626.0,0.52853206]
[1745646242352,0.27534393,94627.0,94626.0,0.09603206]
[1745646242848,0.27534393,94627.0,94626.0,0.03111206]
[1745646260058,0.27534393,94627.0,94626.0,0.02411206]
[1745646260261,0.27534393,94627.0,94626.0,0.00911206]
[1745646261365,0.27534393,94627.0,94626.0,0.01589599]
[1745646261962,0.27534393,94627.0,94626.0,0.00989599]
[1745646262265,0.27534393,94627.0,94619.0,0.06488]
[1745646262565,0.27534393,94627.0,94619.0,0.06088]
[1745646263167,0.27434393,94627.0,94620.0,0.0709]
[1745646263369,0.27534393,94627.0,94620.0,0.0709]
[1745646263967,0.27534393,94627.0,94620.0,0.07875446]
[1745646264964,0.27534393,94627.0,94620.0,0.08575446]
[1745646265462,0.27534393,94627.0,94621.0,0.0704]
[1745646266260,0.27534393,94627.0,94622.0,0.0724]
[1745646266664,0.27534393,94627.0,94623.0,0.0755]
[1745646269265,0.27534393,94627.0,94623.0,0.0815]
[1745646269463,0.27534393,94627.0,94623.0,0.0865]
[1745646271162,0.27534393,94627.0,94624.0,0.0766]
[1745646271564,0.27534393,94627.0,94625.0,0.074]
[1745646273164,0.19844393,94627.0,94625.0,0.079]
[1745646273463,0.19944393,94627.0,94626.0,0.1524]
[1745646273859,0.19844393,94627.0,94626.0,0.1524]
[1745646274067,0.19944393,94627.0,94626.0,0.1524]
[1745646274866,0.19944393,94627.0,94626.0,0.1554]
[1745646275668,0.19944393,94627.0,94626.0,0.1604]
[1745646277467,0.19944393,94627.0,94626.0,0.21325795]
[1745646280374,0.12864393,94627.0,94626.0,0.21325795]
[1745646280971,0.12864393,94627.0,94626.0,0.28805795]
[1745646281171,0.001,94627.0,94626.0,0.28805795]
[1745646281368,0.0761,94635.0,94626.0,0.28805795]
[1745646281670,0.39264201,94653.0,94627.0,0.05285795]
[1745646281868,0.39264201,94653.0,94643.0,0.3608]
[1745646282069,0.39264201,94653.0,94644.0,0.20315795]
[1745646282466,0.19605251,94649.0,94645.0,0.05285795]
[1745646282671,0.19605251,94649.0,94644.0,0.18322574]
[1745646282872,0.19605251,94649.0,94645.0,0.05278008]
[1745646283079,0.19605251,94649.0,94644.0,0.18322574]
[1745646283369,0.14142323,94649.0,94644.0,0.18422574]
[1745646283771,0.14142323,94649.0,94645.0,0.05274704]
[1745646284068,0.13742323,94649.0,94646.0,0.05274704]
[1745646284268,0.13842323,94649.0,94647.0,0.20304704]
[1745646284470,0.13842323,94649.0,94648.0,0.05274704]
[1745646284772,0.008,94649.0,94648.0,0.05274704]
[1745646284967,0.008,94649.0,94648.0,0.20134704]
[1745646285474,0.008,94649.0,94648.0,0.1486]
[1745646285863,0.008,94649.0,94648.0,0.21344]
[1745646286464,0.008,94649.0,94648.0,0.22044]
[1745646286465,0.001,94649.0,94648.0,0.22044]
[1745646289171,0.169,94649.0,94648.0,0.22044]
[1745646297771,0.169,94649.0,94648.0,0.58124]
[1745646300171,0.169,94649.0,94648.0,0.50434]
[1745646302079,0.169,94649.0,94648.0,0.007]
[1745646302374,0.7358742,94649.0,94648.0,0.007]
[1745646302565,0.524656,94649.0,94648.0,0.007]
[1745646302766,0.274656,94649.0,94648.0,0.007]
[1745646302973,0.421956,94649.0,94648.0,0.007]
[1745646304578,0.421956,94649.0,94630.0,0.06484]
[1745646304579,1.42539801,94649.0,94630.0,0.06484]
[1745646304874,0.3608,94631.0,94630.0,0.06484]
[1745646305277,0.5288,94631.0,94630.0,0.06484]
[1745646307579,0.5288,94631.0,94630.0,0.06884]
[1745646308171,0.5298,94631.0,94630.0,0.06884]
[1745646310278,0.8906,94631.0,94623.0,0.06484]
[1745646310480,0.214,94630.0,94623.0,0.06484]
[1745646311074,0.382,94630.0,94623.0,0.06484]
[1745646311768,0.382,94630.0,94623.0,0.07084]
[1745646311973,0.382,94630.0,94623.0,0.10286486]
[1745646312370,0.383,94630.0,94623.0,0.10286486]
[1745646313570,0.383,94630.0,94624.0,0.0714]
[1745646314173,0.3608,94625.0,94624.0,0.0714]
[1745646314577,0.3608,94625.0,94623.0,0.10286486]
[1745646314781,0.1439,94624.0,94623.0,0.09686486]
[1745646315175,0.3119,94624.0,94623.0,0.09686486]
[1745646316076,0.3119,94624.0,94623.0,0.09986486]
[1745646316978,0.3129,94624.0,94623.0,0.09986486]
[1745646319189,0.169,94624.0,94623.0,0.09986486]
[1745646319987,0.169,94624.0,94623.0,0.24526486]
[1745646334089,0.5298,94624.0,94623.0,0.24526486]
[1745646334287,0.3618,94624.0,94623.0,0.24526486]
[1745646334495,0.3618,94624.0,94623.0,0.2980794]
[1745646335193,0.5298,94624.0,94623.0,0.2980794]
[1745646343708,0.5298,94624.0,94623.0,0.2239794]
[1745646344814,0.6043,94624.0,94623.0,0.2239794]
[1745646348915,0.52894,94624.0,94623.0,0.2239794]
[1745646349125,0.39264201,94651.0,94623.0,0.18730652]
[1745646349419,0.3608,94639.0,94631.0,0.3608]
[1745646349621,0.1491,94638.0,94632.0,0.27188968]
[1745646349819,0.1491,94638.0,94633.0,0.06902534]
[1745646350011,0.1491,94638.0,94634.0,0.05288968]
[1745646350211,0.3171,94638.0,94635.0,0.12478968]
[1745646350422,0.3171,94638.0,94635.0,0.0719]
[1745646351821,0.3171,94638.0,94635.0,0.0739]
[1745646352024,0.3181,94638.0,94636.0,0.0748]
[1745646352518,0.3181,94638.0,94637.0,0.0708]
[1745646354122,0.3181,94638.0,94637.0,0.0728]
[1745646354310,0.3171,94638.0,94637.0,0.0728]
[1745646354514,0.3181,94638.0,94637.0,0.0728]
[1745646355115,0.3171,94638.0,94637.0,0.0728]
[1745646355314,0.3181,94638.0,94637.0,0.0738]
[1745646357224,0.3913,94638.0,94637.0,0.0738]
[1745646359319,0.0653,94679.0,94637.0,0.45085967]
[1745646359511,0.0746,94650.0,94640.0,0.06571127]
[1745646359715,0.0746,94650.0,94649.0,0.7216]
[1745646360218,0.2426,94650.0,94649.0,0.7216]
[1745646360818,0.2466,94650.0,94649.0,0.7216]
[1745646361019,0.2556,94650.0,94649.0,0.7226]
[1745646361525,0.2516,94650.0,94649.0,0.7226]
[1745646361713,0.2576,94650.0,94649.0,0.7226]
[1745646364521,0.09195,94650.0,94649.0,0.7226]
[1745646364716,0.0731,94663.0,94649.0,0.7226]
[1745646364923,0.4142,94683.0,94662.0,0.3608]
[1745646365224,0.1712,94682.0,94679.0,0.3608]
[1745646365624,0.63371,94681.0,94679.0,0.3608]
[1745646366129,0.70961,94680.0,94679.0,0.3608]
[1745646366523,0.95961,94680.0,94679.0,0.3608]
[1745646367126,1.12761,94680.0,94679.0,0.3628]
[1745646367327,1.12761,94680.0,94679.0,0.41624349]
[1745646367526,1.12761,94680.0,94679.0,0.41424349]
[1745646367726,0.36452,94680.0,94679.0,0.41624349]
[1745646368030,0.2589,94680.0,94679.0,0.41724349]
[1745646368635,0.2759,94680.0,94679.0,0.41724349]
[1745646369235,0.2759,94680.0,94679.0,0.05644349]
[1745646369529,0.2759,94680.0,94679.0,0.41724349]
[1745646370227,0.2759,94680.0,94679.0,0.4251998]
[1745646386840,0.2669,94680.0,94679.0,0.4241998]
[1745646388240,0.2649,94680.0,94679.0,0.4241998]
[1745646388539,0.189,94680.0,94679.0,0.4241998]
[1745646388837,0.18338001,94680.0,94679.0,0.4241998]
[1745646389242,0.021,94680.0,94679.0,0.4241998]
[1745646389830,0.02,94680.0,94679.0,0.4241998]
[1745646390533,0.009,94680.0,94679.0,0.4241998]
[1745646391442,0.1,94700.0,94679.0,0.4231998]
[1745646391634,0.1,94700.0,94690.0,0.3608]
[1745646392235,0.1693,94691.0,94690.0,0.3608]
[1745646392433,0.08837004,94700.0,94690.0,0.618808]
[1745646392635,0.03108004,94700.0,94699.0,0.3608]
[1745646394241,0.03108004,94700.0,94699.0,0.3628]
[1745646394747,0.03108004,94700.0,94699.0,0.3658]
[1745646396141,0.19908004,94700.0,94699.0,0.3658]
[1745646400435,0.19908004,94700.0,94699.0,0.5168]
[1745646407040,0.19908004,94700.0,94699.0,0.4435]
[1745646407540,0.41018454,94700.0,94699.0,0.3658]
[1745646407740,0.19908004,94700.0,94699.0,0.3658]
[1745646408336,0.34898004,94700.0,94699.0,0.3658]
[1745646410547,0.34898004,94700.0,94699.0,0.3018]
[1745646410748,0.34898004,94700.0,94699.0,0.2498]
[1745646411140,0.34898004,94700.0,94699.0,0.2298]
[1745646411446,0.56008454,94700.0,94699.0,0.2298]
[1745646411646,0.2111085,94699.0,94689.0,0.3029]
[1745646412039,0.1521,94698.0,94689.0,0.3029]
[1745646413239,0.3201,94698.0,94685.0,0.51052]
[1745646413636,0.3201,94698.0,94685.0,0.01052]
[1745646413840,0.3608,94688.0,94684.0,0.06472]
[1745646414140,0.1527,94687.0,94684.0,0.06472]
[1745646414549,0.1527,94687.0,94685.0,0.004]
[1745646414748,0.1527,94687.0,94685.0,0.0783]
[1745646415248,0.3217,94687.0,94685.0,0.0783]
[1745646415643,0.3217,94687.0,94685.0,0.0743]
[1745646415948,0.3217,94687.0,94685.0,0.0803]
[1745646417347,0.3217,94687.0,94685.0,0.0853]
[1745646417649,0.2463,94687.0,94685.0,0.0853]
[1745646417951,0.0714,94686.0,94685.0,0.0853]
[1745646418141,0.2394,94686.0,94685.0,0.0853]
[1745646418343,0.3145,94686.0,94685.0,0.0853]
[1745646419045,0.3155,94686.0,94685.0,0.0863]
[1745646420739,0.6322477,94686.0,94685.0,0.012]
[1745646420946,0.421112,94686.0,94685.0,0.012]
[1745646423154,0.781912,94686.0,94685.0,0.012]
[1745646426047,0.6763,94686.0,94685.0,0.012]
[1745646434354,0.5298,94686.0,94685.0,0.012]
[1745646434748,0.169,94686.0,94685.0,0.012]
[1745646435047,0.169,94686.0,94685.0,0.213337]
[1745646435250,0.001,94686.0,94685.0,0.213337]
[1745646435557,0.001,94686.0,94685.0,0.278057]
[1745646436256,0.169,94686.0,94685.0,0.278057]
[1745646437552,0.169,94686.0,94685.0,0.29440632]
[1745646437743,0.169,94686.0,94685.0,0.278057]
[1745646439755,0.169,94686.0,94685.0,0.213337]
[1745646439952,0.169,94686.0,94685.0,0.278057]
[1745646443249,0.001,94686.0,94685.0,0.278057]
[1745646444051,0.169,94686.0,94685.0,0.278057]
[1745646444647,0.248,94686.0,94685.0,0.278057]
[1745646444861,0.248,94686.0,94685.0,0.22522]
[1745646445248,0.248,94686.0,94685.0,0.27809702]
[1745646445452,0.248,94686.0,94685.0,0.22522]
[1745646445655,0.248,94686.0,94685.0,0.27809683]